fUST/lending_fUST_20250221
["ID","MTS","AMOUNT","RATE_DAILY","PERIOD"]
[353829422,1740082254633,-1545.04,0.00014191,2]
[353829423,1740082254647,-500.0,0.00014191,2]
[353829424,1740082254665,-500.0,0.00014191,2]
[353829425,1740082254683,-500.0,0.00014191,2]
[353829426,1740082254700,-371.04980612,0.00014191,2]
[353829427,1740082254718,-500.0,0.00014191,2]
[353829428,1740082254736,-500.0,0.00014191,2]
[353829429,1740082254753,-2714.81,0.000142,2]
[353829430,1740082254771,-1020.454338,0.00014236,2]
[353829431,1740082254789,-500.0,0.00014273,2]
[353829432,1740082254806,-404.5563,0.00014273,2]
[353829433,1740082254825,-500.0,0.00014273,2]
[353829434,1740082254846,-500.0,0.00014273,2]
[353829435,1740082254866,-496.55983966,0.00014273,2]
[353829436,1740082254887,-171.51,0.00014273,2]
[353829437,1740082254906,-1191.1,0.00014273,2]
[353829438,1740082254916,-500.0,0.00014273,2]
[353829439,1740082254926,-584.55,0.00014273,2]
[353829440,1740082254936,-606.74,0.00014273,2]
[353829441,1740082254946,-754.28,0.00014273,2]
[353829442,1740082254956,-500.0,0.00014273,2]
[353829443,1740082254967,-500.0,0.00014273,2]
[353829444,1740082254976,-500.0,0.00014273,2]
[353829445,1740082254986,-500.0,0.00014273,2]
[353829446,1740082254996,-885.87,0.00014273,2]
[353829447,1740082255007,-542.08,0.00014273,2]
[353829448,1740082255017,-500.0,0.00014273,2]
[353829449,1740082255027,-538.88,0.00014273,2]
[353829450,1740082255037,-500.0,0.00014273,2]
[353829451,1740082255047,-541.39,0.00014273,2]
[353829452,1740082255057,-598.38,0.00014273,2]
[353829453,1740082255067,-500.0,0.00014273,2]
[353829454,1740082255077,-1070.79,0.00014273,2]
[353829455,1740082255087,-306.62239725,0.00014273,2]
[353829456,1740082255097,-500.0,0.00014273,2]
[353829457,1740082255107,-890.0,0.00014273,2]
[353829458,1740082255116,-500.0,0.00014273,2]
[353829459,1740082255126,-500.0,0.00014273,2]
[353829460,1740082255136,-500.0,0.00014273,2]
[353829461,1740082255147,-500.0,0.00014273,2]
[353829462,1740082255156,-679.45,0.00014273,2]
[353829463,1740082255166,-500.0,0.00014273,2]
[353829464,1740082255176,-548.08,0.00014273,2]
[353829465,1740082255186,-500.0,0.00014273,2]
[353829466,1740082255196,-547.61,0.00014273,2]
[353829467,1740082255206,-500.0,0.00014273,2]
[353829468,1740082255216,-500.0,0.00014273,2]
[353829469,1740082255226,-500.0,0.00014273,2]
[353829470,1740082255235,-500.0,0.00014273,2]
[353829471,1740082255245,-500.0,0.00014273,2]
[353829472,1740082255256,-500.0,0.00014273,2]
[353829473,1740082255266,-500.0,0.00014273,2]
[353829474,1740082255276,-3441.58,0.00014273,2]
[353829475,1740082255285,-2972.44,0.00014273,2]
[353829476,1740082255294,-500.0,0.00014273,2]
[353829477,1740082255303,-500.0,0.00014273,2]
[353829478,1740082255313,-1662.58,0.00014273,2]
[353829479,1740082255322,-646.88,0.00014273,2]
[353829480,1740082255332,-1302.03,0.00014273,2]
[353829481,1740082255341,-500.0,0.00014273,2]
[353829482,1740082255351,-712.82,0.00014273,2]
[353829483,1740082255360,-825.46,0.00014273,2]
[353829484,1740082255370,-14441.06,0.00014273,2]
[353829485,1740082255379,-500.0,0.00014273,2]
[353829486,1740082255388,-500.0,0.00014273,2]
[353829487,1740082255397,-500.0,0.00014273,2]
[353829488,1740082255406,-2628.75,0.00014273,2]
[353829489,1740082255415,-1055.15,0.00014273,2]
[353829490,1740082255425,-998.82,0.00014273,2]
[353829491,1740082255434,-39191.14,0.00014273,2]
[353829492,1740082255443,-1018.22,0.00014273,2]
[353829493,1740082255452,-500.0,0.00014273,2]
[353829494,1740082255462,-2756.61,0.00014273,2]
[353829495,1740082255472,-2153.5,0.00014273,2]
[353829496,1740082255481,-6118.66,0.00014273,2]
[353829497,1740082255489,-1104.4,0.00014273,2]
[353829498,1740082255498,-500.0,0.00014273,2]
[353829499,1740082255509,-153.85974818,0.00014273,2]
[353829500,1740082255519,-278.9838097,0.00014273,2]
[353829501,1740082255528,-500.0,0.00014273,2]
[353829502,1740082255538,-3624.95,0.00014273,2]
[353829503,1740082255547,-500.0,0.00014273,2]
[353829504,1740082255557,-500.0,0.00014273,2]
[353829505,1740082255566,-500.0,0.00014273,2]
[353829506,1740082255576,-1955.2,0.00014273,2]
[353829507,1740082255585,-500.0,0.00014273,2]
[353829508,1740082255595,-500.0,0.00014273,2]
[353829509,1740082255604,-893.57,0.00014273,2]
[353829510,1740082255614,-2929.05,0.00014273,2]
[353829511,1740082255623,-1429.61,0.00014273,2]
[353829512,1740082255632,-500.0,0.00014273,2]
[353829513,1740082255642,-625.42,0.00014273,2]
[353829514,1740082255654,-500.0,0.00014273,2]
[353829515,1740082255663,-500.0,0.00014273,2]
[353829516,1740082255671,-500.0,0.00014273,2]
[353829517,1740082255680,-500.0,0.00014273,2]
[353829518,1740082255690,-1152.68,0.00014273,2]
[353829519,1740082255699,-500.0,0.00014273,2]
[353829520,1740082255709,-500.0,0.00014273,2]
[353829521,1740082255719,-1867.16,0.00014273,2]
[353829522,1740082255729,-1376.24,0.00014273,2]
[353829523,1740082255739,-378.45,0.00014273,2]
[353829524,1740082255749,-500.0,0.00014273,2]
[353829525,1740082255759,-500.0,0.00014273,2]
[353829526,1740082255769,-525.13,0.00014273,2]
[353829527,1740082255779,-5313.9,0.00014273,2]
[353829528,1740082255789,-12729.62,0.00014273,2]
[353829529,1740082255798,-668.14,0.00014273,2]
[353829530,1740082255808,-500.0,0.00014273,2]
[353829531,1740082255817,-1741.58,0.00014273,2]
[353829532,1740082255826,-1908.2,0.00014273,2]
[353829533,1740082255835,-1204.27,0.00014273,2]
[353829534,1740082255845,-500.0,0.00014273,2]
[353829535,1740082255855,-500.0,0.00014273,2]
[353829536,1740082255864,-599.66,0.00014273,2]
[353829537,1740082255874,-500.0,0.00014273,2]
[353829538,1740082255884,-1545.04,0.00014273,2]
[353829539,1740082255894,-500.0,0.00014273,2]
[353829540,1740082255904,-500.0,0.00014273,2]
[353829541,1740082255914,-500.0,0.00014273,2]
[353829542,1740082255923,-500.0,0.00014273,2]
[353829543,1740082255934,-500.0,0.00014273,2]
[353829544,1740082256019,-1000.0,0.00014321,2]
[353829545,1740082256037,-154.7234452,0.00014327,2]
[353829546,1740082256047,-154.0869634,0.00014327,2]
[353829547,1740082256057,-600.0,0.00014334,2]
[353829548,1740082256066,-500.0,0.00014356,2]
[353829549,1740082256076,-500.0,0.00014356,2]
[353829550,1740082256085,-500.0,0.00014356,2]
[353829551,1740082256095,-1191.1,0.00014356,2]
[353829552,1740082256104,-500.0,0.00014356,2]
[353829553,1740082256114,-584.55,0.00014356,2]
[353829554,1740082256123,-606.74,0.00014356,2]
[353829555,1740082256134,-754.28,0.00014356,2]
[353829556,1740082256144,-500.0,0.00014356,2]
[353829557,1740082256153,-500.0,0.00014356,2]
[353829558,1740082256163,-500.0,0.00014356,2]
[353829559,1740082256174,-885.87,0.00014356,2]
[353829560,1740082256183,-500.0,0.00014356,2]
[353829561,1740082256193,-538.88,0.00014356,2]
[353829562,1740082256202,-500.0,0.00014356,2]
[353829563,1740082256212,-541.39,0.00014356,2]
[353829564,1740082256222,-598.38,0.00014356,2]
[353829565,1740082256232,-500.0,0.00014356,2]
[353829566,1740082256241,-1070.79,0.00014356,2]
[353829567,1740082256251,-500.0,0.00014356,2]
[353829568,1740082256262,-890.0,0.00014356,2]
[353829569,1740082256272,-500.0,0.00014356,2]
[353829570,1740082256281,-500.0,0.00014356,2]
[353829571,1740082256291,-500.0,0.00014356,2]
[353829572,1740082256301,-500.0,0.00014356,2]
[353829573,1740082256311,-679.45,0.00014356,2]
[353829574,1740082256320,-500.0,0.00014356,2]
[353829575,1740082256330,-548.08,0.00014356,2]
[353829576,1740082256339,-500.0,0.00014356,2]
[353829577,1740082256349,-547.61,0.00014356,2]
[353829578,1740082256360,-500.0,0.00014356,2]
[353829579,1740082256370,-500.0,0.00014356,2]
[353829580,1740082256380,-500.0,0.00014356,2]
[353829581,1740082256389,-500.0,0.00014356,2]
[353829582,1740082256399,-500.0,0.00014356,2]
[353829583,1740082256409,-500.0,0.00014356,2]
[353829584,1740082256419,-500.0,0.00014356,2]
[353829585,1740082256432,-3441.58,0.00014356,2]
[353829586,1740082256442,-2972.44,0.00014356,2]
[353829587,1740082256452,-500.0,0.00014356,2]
[353829588,1740082256462,-500.0,0.00014356,2]
[353829589,1740082256471,-1662.58,0.00014356,2]
[353829590,1740082256480,-646.88,0.00014356,2]
[353829591,1740082256489,-1302.03,0.00014356,2]
[353829592,1740082256499,-712.82,0.00014356,2]
[353829593,1740082256509,-825.46,0.00014356,2]
[353829594,1740082256519,-14441.06,0.00014356,2]
[353829595,1740082256528,-500.0,0.00014356,2]
[353829596,1740082256537,-500.0,0.00014356,2]
[353829597,1740082256547,-500.0,0.00014356,2]
[353829598,1740082256556,-2628.75,0.00014356,2]
[353829599,1740082256566,-1055.15,0.00014356,2]
[353829600,1740082256575,-998.82,0.00014356,2]
[353829601,1740082256586,-39191.14,0.00014356,2]
[353829602,1740082256596,-1018.22,0.00014356,2]
[353829603,1740082256605,-500.0,0.00014356,2]
[353829604,1740082256615,-2756.61,0.00014356,2]
[353829605,1740082256626,-2153.5,0.00014356,2]
[353829606,1740082256635,-6118.66,0.00014356,2]
[353829607,1740082256644,-1104.4,0.00014356,2]
[353829608,1740082256657,-594.82,0.00014356,2]
[353829609,1740082256667,-500.0,0.00014356,2]
[353829610,1740082256676,-3624.95,0.00014356,2]
[353829611,1740082256686,-500.0,0.00014356,2]
[353829612,1740082256696,-513.79,0.00014356,2]
[353829613,1740082256706,-500.0,0.00014356,2]
[353829614,1740082256715,-1955.2,0.00014356,2]
[353829615,1740082256725,-500.0,0.00014356,2]
[353829616,1740082256737,-500.0,0.00014356,2]
[353829617,1740082256747,-893.57,0.00014356,2]
[353829618,1740082256758,-2929.05,0.00014356,2]
[353829619,1740082256767,-1429.61,0.00014356,2]
[353829620,1740082256778,-500.0,0.00014356,2]
[353829621,1740082256788,-625.42,0.00014356,2]
[353829622,1740082256798,-500.0,0.00014356,2]
[353829623,1740082256807,-500.0,0.00014356,2]
[353829624,1740082256817,-500.0,0.00014356,2]
[353829625,1740082256827,-500.0,0.00014356,2]
[353829626,1740082256838,-1152.68,0.00014356,2]
[353829627,1740082256848,-500.0,0.00014356,2]
[353829628,1740082256858,-500.0,0.00014356,2]
[353829629,1740082256868,-1867.16,0.00014356,2]
[353829630,1740082256882,-1376.24,0.00014356,2]
[353829631,1740082256892,-500.0,0.00014356,2]
[353829632,1740082256903,-500.0,0.00014356,2]
[353829633,1740082256912,-5313.9,0.00014356,2]
[353829634,1740082256922,-12729.62,0.00014356,2]
[353829635,1740082256932,-668.14,0.00014356,2]
[353829636,1740082256942,-500.0,0.00014356,2]
[353829637,1740082256951,-1741.58,0.00014356,2]
[353829638,1740082256961,-1908.2,0.00014356,2]
[353829639,1740082256972,-1204.27,0.00014356,2]
[353829640,1740082256982,-500.0,0.00014356,2]
[353829641,1740082256993,-500.0,0.00014356,2]
[353829642,1740082257003,-599.66,0.00014356,2]
[353829643,1740082257014,-500.0,0.00014356,2]
[353829644,1740082257024,-1545.04,0.00014356,2]
[353829645,1740082257035,-500.0,0.00014356,2]
[353829646,1740082257045,-500.0,0.00014356,2]
[353829647,1740082257055,-493.89,0.00014356,2]
[353829648,1740082257066,-500.0,0.00014356,2]
[353829649,1740082257076,-629.31690969,0.00014356,2]
[353829650,1740082257086,-160.0,0.0001442,4]
[353829651,1740082257096,-160.0,0.0001442,5]
[353829652,1740082257106,-500.0,0.00014438,2]
[353829653,1740082257116,-500.0,0.00014438,2]
[353829654,1740082257125,-1191.1,0.00014438,2]
[353829655,1740082257134,-500.0,0.00014438,2]
[353829656,1740082257144,-584.55,0.00014438,2]
[353829657,1740082257154,-606.74,0.00014438,2]
[353829658,1740082257163,-754.28,0.00014438,2]
[353829659,1740082257172,-500.0,0.00014438,2]
[353829660,1740082257182,-299.16,0.00014438,2]
[353829661,1740082257192,-500.0,0.00014438,2]
[353829662,1740082257202,-885.87,0.00014438,2]
[353829663,1740082257211,-500.0,0.00014438,2]
[353829664,1740082257222,-538.88,0.00014438,2]
[353829665,1740082257232,-500.0,0.00014438,2]
[353829666,1740082257242,-541.39,0.00014438,2]
[353829667,1740082257252,-598.38,0.00014438,2]
[353829668,1740082257262,-500.0,0.00014438,2]
[353829669,1740082257272,-1070.79,0.00014438,2]
[353829670,1740082257281,-500.0,0.00014438,2]
[353829671,1740082257290,-890.0,0.00014438,2]
[353829672,1740082257300,-500.0,0.00014438,2]
[353829673,1740082257310,-500.0,0.00014438,2]
[353829674,1740082257319,-500.0,0.00014438,2]
[353829675,1740082257329,-500.0,0.00014438,2]
[353829676,1740082257338,-679.45,0.00014438,2]
[353829677,1740082257348,-500.0,0.00014438,2]
[353829678,1740082257357,-548.08,0.00014438,2]
[353829679,1740082257367,-500.0,0.00014438,2]
[353829680,1740082257377,-547.61,0.00014438,2]
[353829681,1740082257386,-500.0,0.00014438,2]
[353829682,1740082257396,-500.0,0.00014438,2]
[353829683,1740082257405,-500.0,0.00014438,2]
[353829684,1740082257414,-242.45975678,0.00014438,2]
[353829685,1740082257423,-500.0,0.00014438,2]
[353829686,1740082257432,-500.0,0.00014438,2]
[353829687,1740082257441,-500.0,0.00014438,2]
[353829688,1740082257451,-3441.58,0.00014438,2]
[353829689,1740082257461,-2972.44,0.00014438,2]
[353829690,1740082257471,-500.0,0.00014438,2]
[353829691,1740082257482,-500.0,0.00014438,2]
[353829692,1740082257492,-1662.58,0.00014438,2]
[353829693,1740082257502,-646.88,0.00014438,2]
[353829694,1740082257512,-1302.03,0.00014438,2]
[353829695,1740082257523,-712.82,0.00014438,2]
[353829696,1740082257532,-825.46,0.00014438,2]
[353829697,1740082257542,-14441.06,0.00014438,2]
[353829698,1740082257551,-500.0,0.00014438,2]
[353829699,1740082257560,-500.0,0.00014438,2]
[353829700,1740082257570,-500.0,0.00014438,2]
[353829701,1740082257580,-2628.75,0.00014438,2]
[353829702,1740082257590,-1055.15,0.00014438,2]
[353829703,1740082257599,-998.82,0.00014438,2]
[353829704,1740082257608,-39191.14,0.00014438,2]
[353829705,1740082257618,-1018.22,0.00014438,2]
[353829706,1740082257627,-500.0,0.00014438,2]
[353829707,1740082257637,-2756.61,0.00014438,2]
[353829708,1740082257647,-2153.5,0.00014438,2]
[353829709,1740082257661,-6118.66,0.00014438,2]
[353829710,1740082257745,-1104.4,0.00014438,2]
[353829711,1740082257763,-500.0,0.00014438,2]
[353829712,1740082257772,-3624.95,0.00014438,2]
[353829713,1740082257782,-500.0,0.00014438,2]
[353829714,1740082257792,-500.0,0.00014438,2]
[353829715,1740082257802,-1955.2,0.00014438,2]
[353829716,1740082257812,-500.0,0.00014438,2]
[353829717,1740082257822,-500.0,0.00014438,2]
[353829718,1740082257832,-893.57,0.00014438,2]
[353829719,1740082257842,-2929.05,0.00014438,2]
[353829720,1740082257852,-1429.61,0.00014438,2]
[353829721,1740082257861,-245.7,0.00014438,2]
[353829722,1740082257871,-625.42,0.00014438,2]
[353829723,1740082257881,-500.0,0.00014438,2]
[353829724,1740082257891,-500.0,0.00014438,2]
[353829725,1740082257901,-500.0,0.00014438,2]
[353829726,1740082257911,-500.0,0.00014438,2]
[353829727,1740082257921,-1152.68,0.00014438,2]
[353829728,1740082257931,-500.0,0.00014438,2]
[353829729,1740082257941,-500.0,0.00014438,2]
[353829730,1740082257951,-1867.16,0.00014438,2]
[353829731,1740082257960,-1376.24,0.00014438,2]
[353829732,1740082257970,-500.0,0.00014438,2]
[353829733,1740082257980,-500.0,0.00014438,2]
[353829734,1740082257989,-5313.9,0.00014438,2]
[353829735,1740082258000,-12729.62,0.00014438,2]
[353829736,1740082258010,-668.14,0.00014438,2]
[353829737,1740082258020,-360.23591674,0.00014438,2]
[353829738,1740082258031,-1741.58,0.00014438,2]
[353829739,1740082258041,-1908.2,0.00014438,2]
[353829740,1740082258051,-1204.27,0.00014438,2]
[353829741,1740082258060,-500.0,0.00014438,2]
[353829742,1740082258070,-500.0,0.00014438,2]
[353829743,1740082258080,-599.66,0.00014438,2]
[353829744,1740082258091,-500.0,0.00014438,2]
[353829745,1740082258100,-1545.04,0.00014438,2]
[353829746,1740082258110,-500.0,0.00014438,2]
[353829747,1740082258120,-500.0,0.00014438,2]
[353829748,1740082258130,-500.0,0.00014438,2]
[353829749,1740082258140,-605.42324317,0.00014483,2]
[353829750,1740082258149,-500.0,0.0001452,2]
[353829751,1740082258159,-500.0,0.0001452,2]
[353829752,1740082258168,-1191.1,0.0001452,2]
[353829753,1740082258178,-500.0,0.0001452,2]
[353829754,1740082258188,-584.55,0.0001452,2]
[353829755,1740082258198,-606.74,0.0001452,2]
[353829756,1740082258208,-754.28,0.0001452,2]
[353829757,1740082258218,-500.0,0.0001452,2]
[353829758,1740082258228,-500.0,0.0001452,2]
[353829759,1740082258238,-885.87,0.0001452,2]
[353829760,1740082258248,-500.0,0.0001452,2]
[353829761,1740082258258,-538.88,0.0001452,2]
[353829762,1740082258267,-500.0,0.0001452,2]
[353829763,1740082258276,-541.39,0.0001452,2]
[353829764,1740082258285,-598.38,0.0001452,2]
[353829765,1740082258295,-500.0,0.0001452,2]
[353829766,1740082258304,-1070.79,0.0001452,2]
[353829767,1740082258314,-500.0,0.0001452,2]
[353829768,1740082258324,-890.0,0.0001452,2]
[353829769,1740082258334,-188.30426012,0.0001452,2]
[353829770,1740082258344,-500.0,0.0001452,2]
[353829771,1740082258354,-500.0,0.0001452,2]
[353829772,1740082258364,-500.0,0.0001452,2]
[353829773,1740082258374,-679.45,0.0001452,2]
[353829774,1740082258383,-500.0,0.0001452,2]
[353829775,1740082258393,-548.08,0.0001452,2]
[353829776,1740082258402,-500.0,0.0001452,2]
[353829777,1740082258412,-547.61,0.0001452,2]
[353829778,1740082258422,-500.0,0.0001452,2]
[353829779,1740082258432,-347.76023138,0.0001452,2]
[353829780,1740082258441,-500.0,0.0001452,2]
[353829781,1740082258451,-500.0,0.0001452,2]
[353829782,1740082258460,-500.0,0.0001452,2]
[353829783,1740082258470,-3441.58,0.0001452,2]
[353829784,1740082258479,-2972.44,0.0001452,2]
[353829785,1740082258489,-500.0,0.0001452,2]
[353829786,1740082258499,-500.0,0.0001452,2]
[353829787,1740082258509,-1662.58,0.0001452,2]
[353829788,1740082258518,-646.88,0.0001452,2]
[353829789,1740082258528,-1302.03,0.0001452,2]
[353829790,1740082258538,-712.82,0.0001452,2]
[353829791,1740082258548,-825.46,0.0001452,2]
[353829792,1740082258557,-14441.06,0.0001452,2]
[353829793,1740082258567,-500.0,0.0001452,2]
[353829794,1740082258576,-500.0,0.0001452,2]
[353829795,1740082258586,-500.0,0.0001452,2]
[353829796,1740082258595,-2628.75,0.0001452,2]
[353829797,1740082258605,-1055.15,0.0001452,2]
[353829798,1740082258614,-998.82,0.0001452,2]
[353829799,1740082258624,-39191.14,0.0001452,2]
[353829800,1740082258633,-1018.22,0.0001452,2]
[353829801,1740082258643,-500.0,0.0001452,2]
[353829802,1740082258656,-2756.61,0.0001452,2]
[353829803,1740082258666,-2153.5,0.0001452,2]
[353829804,1740082258675,-6118.66,0.0001452,2]
[353829805,1740082258685,-1104.4,0.0001452,2]
[353829806,1740082258697,-500.0,0.0001452,2]
[353829807,1740082258706,-3624.95,0.0001452,2]
[353829808,1740082258716,-500.0,0.0001452,2]
[353829809,1740082258727,-409.6576848,0.0001452,2]
[353829810,1740082258736,-1955.2,0.0001452,2]
[353829811,1740082258745,-500.0,0.0001452,2]
[353829812,1740082258755,-893.57,0.0001452,2]
[353829813,1740082258765,-2929.05,0.0001452,2]
[353829814,1740082258775,-1429.61,0.0001452,2]
[353829815,1740082258785,-625.42,0.0001452,2]
[353829816,1740082258795,-500.0,0.0001452,2]
[353829817,1740082258804,-500.0,0.0001452,2]
[353829818,1740082258813,-500.0,0.0001452,2]
[353829819,1740082258823,-500.0,0.0001452,2]
[353829820,1740082258833,-1152.68,0.0001452,2]
[353829821,1740082258843,-500.0,0.0001452,2]
[353829822,1740082258852,-500.0,0.0001452,2]
[353829823,1740082258862,-1867.16,0.0001452,2]
[353829824,1740082258872,-1376.24,0.0001452,2]
[353829825,1740082258882,-500.0,0.0001452,2]
[353829826,1740082258891,-350.22116527,0.0001452,2]
[353829827,1740082258901,-5313.9,0.0001452,2]
[353829828,1740082258911,-12729.62,0.0001452,2]
[353829829,1740082258921,-668.14,0.0001452,2]
[353829830,1740082258930,-1741.58,0.0001452,2]
[353829831,1740082258940,-1908.2,0.0001452,2]
[353829832,1740082258950,-1204.27,0.0001452,2]
[353829833,1740082258960,-604.4,0.0001452,2]
[353829834,1740082258969,-500.0,0.0001452,2]
[353829835,1740082258978,-599.66,0.0001452,2]
[353829836,1740082258988,-500.0,0.0001452,2]
[353829837,1740082258997,-1545.04,0.0001452,2]
[353829838,1740082259006,-500.0,0.0001452,2]
[353829839,1740082259016,-500.0,0.0001452,2]
[353829840,1740082259025,-309.0,0.0001458,2]
[353829841,1740082259034,-500.0,0.00014602,2]
[353829842,1740082259043,-500.0,0.00014602,2]
[353829843,1740082259053,-1191.1,0.00014602,2]
[353829844,1740082259062,-500.0,0.00014602,2]
[353829845,1740082259072,-584.55,0.00014602,2]
[353829846,1740082259081,-606.74,0.00014602,2]
[353829847,1740082259091,-754.28,0.00014602,2]
[353829848,1740082259100,-500.0,0.00014602,2]
[353829849,1740082259109,-500.0,0.00014602,2]
[353829850,1740082259119,-885.87,0.00014602,2]
[353829851,1740082259128,-500.0,0.00014602,2]
[353829852,1740082259137,-538.88,0.00014602,2]
[353829853,1740082259146,-310.33331655,0.00014602,2]
[353829854,1740082259156,-541.39,0.00014602,2]
[353829855,1740082259165,-598.38,0.00014602,2]
[353829856,1740082259175,-500.0,0.00014602,2]
[353829857,1740082259184,-1070.79,0.00014602,2]
[353829858,1740082259193,-500.0,0.00014602,2]
[353829859,1740082259202,-890.0,0.00014602,2]
[353829860,1740082259212,-500.0,0.00014602,2]
[353829861,1740082259221,-500.0,0.00014602,2]
[353829862,1740082259230,-500.0,0.00014602,2]
[353829863,1740082259307,-679.45,0.00014602,2]
[353829864,1740082259322,-500.0,0.00014602,2]
[353829865,1740082259332,-548.08,0.00014602,2]
[353829866,1740082259342,-547.61,0.00014602,2]
[353829867,1740082259351,-500.0,0.00014602,2]
[353829868,1740082259361,-500.0,0.00014602,2]
[353829869,1740082259371,-500.0,0.00014602,2]
[353829870,1740082259380,-500.0,0.00014602,2]
[353829871,1740082259390,-3441.58,0.00014602,2]
[353829872,1740082259399,-2972.44,0.00014602,2]
[353829873,1740082259409,-500.0,0.00014602,2]
[353829874,1740082259418,-500.0,0.00014602,2]
[353829875,1740082259428,-1662.58,0.00014602,2]
[353829876,1740082259439,-646.88,0.00014602,2]
[353829877,1740082259448,-1302.03,0.00014602,2]
[353829878,1740082259457,-712.82,0.00014602,2]
[353829879,1740082259467,-825.46,0.00014602,2]
[353829880,1740082259476,-14441.06,0.00014602,2]
[353829881,1740082259486,-500.0,0.00014602,2]
[353829882,1740082259495,-500.0,0.00014602,2]
[353829883,1740082259504,-500.0,0.00014602,2]
[353829884,1740082259514,-2628.75,0.00014602,2]
[353829885,1740082259523,-1055.15,0.00014602,2]
[353829886,1740082259532,-998.82,0.00014602,2]
[353829887,1740082259541,-39191.14,0.00014602,2]
[353829888,1740082259550,-1018.22,0.00014602,2]
[353829889,1740082259560,-500.0,0.00014602,2]
[353829890,1740082259569,-2756.61,0.00014602,2]
[353829891,1740082259578,-2153.5,0.00014602,2]
[353829892,1740082259588,-6118.66,0.00014602,2]
[353829893,1740082259597,-1104.4,0.00014602,2]
[353829894,1740082259606,-500.0,0.00014602,2]
[353829895,1740082259615,-3624.95,0.00014602,2]
[353829896,1740082259625,-500.0,0.00014602,2]
[353829897,1740082259634,-1955.2,0.00014602,2]
[353829898,1740082259644,-500.0,0.00014602,2]
[353829899,1740082259655,-893.57,0.00014602,2]
[353829900,1740082259665,-2929.05,0.00014602,2]
[353829901,1740082259674,-1429.61,0.00014602,2]
[353829902,1740082259684,-625.42,0.00014602,2]
[353829903,1740082259694,-500.0,0.00014602,2]
[353829904,1740082259703,-500.0,0.00014602,2]
[353829905,1740082259712,-500.0,0.00014602,2]
[353829906,1740082259722,-1152.68,0.00014602,2]
[353829907,1740082259732,-500.0,0.00014602,2]
[353829908,1740082259743,-500.0,0.00014602,2]
[353829909,1740082259752,-1867.16,0.00014602,2]
[353829910,1740082259762,-1376.24,0.00014602,2]
[353829911,1740082259772,-500.0,0.00014602,2]
[353829912,1740082259782,-5313.9,0.00014602,2]
[353829913,1740082259792,-12729.62,0.00014602,2]
[353829914,1740082259801,-668.14,0.00014602,2]
[353829915,1740082259811,-1741.58,0.00014602,2]
[353829916,1740082259820,-1908.2,0.00014602,2]
[353829917,1740082259829,-1204.27,0.00014602,2]
[353829918,1740082259839,-500.0,0.00014602,2]
[353829919,1740082259849,-599.66,0.00014602,2]
[353829920,1740082259858,-500.0,0.00014602,2]
[353829921,1740082259868,-1545.04,0.00014602,2]